Workbook

Sheet 资料清单 (hidden)

Sheet 附表2-拆解处理明细表
A1: 附表2：
A2: 湖南绿色再生资源有限公司2025年第3季度拆解产物产生、处理明细表
A3: 废物名称 | B3: 编码 | C3: 上期结存（吨） | D3: 调账(吨） | E3: 本期产生量（吨） | F3: 本期处理量（吨） | G3: 本期处理量明细 | I3: 库存量（吨）
G4: 重量 | H4: 处理单位
A5: 保温层材料(吨) | B5: G-01-04-01 | C5: 18.7808 | D5: 0.0000 | E5: 504.3364 | F5: 514.4478 | G5: 10.3500 | H5: 长沙超卓新材料科技有限公司 | I5: =C5+D5+E5-F5 -> 8.6694
G6: 562.7600 | H6: 长沙绿动循环环保科技发展有限责任公司
G7: -58.6622 | H7: 二次处理后销售出库
A8: 印刷电路板(吨) | B8: F-01-07/08 | C8: 99.5404 | D8: 0.0000 | E8: =21.1672+77.6272 -> 98.7944 | F8: =17.0441+89.9469 -> 106.9910 | G8: 90.6881 | H8: 湘潭云萃环保技术有限公司 | I8: =C8+D8+E8-F8 -> 91.3438
G9: -0.9886 | H9: 二次处理后销售出库
G10: 17.2915 | H10: 永兴鹏琨环保有限公司
A11: CRT玻璃（吨） | B11: E-01-01 | C11: 4.0900 | D11: 0.0000 | E11: 0.0000 | F11: 4.0900 | G11: 4.0900 | H11: 长沙绿动循环环保科技发展有限责任公司 | I11: 0.0000
A12: CRT锥玻璃(吨) | B12: E-01-02 | C12: 5.5943 | D12: 0.0000 | E12: 0.0000 | F12: 5.5943 | G12: 5.5943 | H12: 汨罗万容固体废物处理有限公司 | I12: 0.0000
A13: CRT屏玻璃(吨) | B13: E-01-03 | C13: 73.5320 | D13: -0.0320 | E13: 0.0000 | F13: 65.2690 | G13: 65.2690 | H13: 长沙绿动循环环保科技发展有限责任公司 | I13: 8.2310
A14: 压缩机 | B14: F-01-03 | C14: 298.9690 | D14: 0.0000 | E14: =3257.4925-0.084 -> 3257.4085 | F14: 2627.2415 | G14: 508.4635 | H14: 天津奥尼斯特物产开发有限公司 | I14: 929.1360
G15: 1271.4920 | H15: 天津恒丰运业金属制品有限公司
G16: 211.3765 | H16: 湖南绿色再生资源有限公司领料处理
G17: 181.8180 | H17: 天津永俊金属制品有限公司
G18: -5.9995 | H18: 二次处理后销售出库
G19: 449.2360 | H19: 铜陵福茂再生资源利用有限公司
G20: 10.8550 | H20: 长沙泰杭电器有限公司
A21: 电动机(洗衣机）/减速机 | B21: F-01-04-05 | C21: 1.9264 | D21: -0.0229 | E21: 0.0000 | F21: 1.6074 | G21: 1.6074 | H21: 天津永俊金属制品有限公司 | I21: =C21+D21+E21-F21 -> 0.2961
A22: 洗衣机电线电缆(吨) | B22: G-01-03-02 | C22: 0.0698 | D22: 0.0000 | E22: 0.0000 | F22: 0.0698 | G22: -0.0640 | H22: 二次处理后销售出库 | I22: -0.0000
G23: 0.1338 | H23: 天津永俊金属制品有限公司
A24: 制冷剂 | B24: D-01-02 | C24: 1.0079 | D24: 0.0000 | E24: 29.8240 | F24: 23.6870 | G24: 23.6870 | H24: 邵武永和金塘新材料有限公司 | I24: 7.1449
A25: 铜及其合金(吨) | B25: B-01-01 | C25: 81.9317 | D25: 0.0000 | E25: 284.2782 | F25: 182.8625 | G25: 54.6287 | H25: 湖南绿色再生资源有限公司领料处理 | I25: 183.3474
G26: 21.9090 | H26: 天津奥尼斯特物产开发有限公司
G27: 25.1650 | H27: 天津博瑞特金属制品有限公司
G28: 40.4515 | H28: 天津恒丰运业金属制品有限公司
G29: -0.4017 | H29: 二次处理后销售出库
G30: 41.1100 | H30: 长沙杰雄通塑胶科技有限公司
A31: 铝及其合金(吨) | B31: B-01-02 | C31: 38.9232 | D31: 0.0000 | E31: 76.5550 | F31: 108.8242 | G31: 0.8763 | H31: 湖南绿色再生资源有限公司领料处理 | I31: =C31+D31+E31-F31 -> 6.6540
G32: 0.0100 | H32: 湖南凯普科技有限公司
G33: 11.8331 | H33: 天津永俊金属制品有限公司
G34: -8.3784 | H34: 二次处理后销售出库
G35: 78.0555 | H35: 天津奥尼斯特物产开发有限公司
G36: 21.2580 | H36: 长沙杰雄通塑胶科技有限公司
G37: 5.1697 | H37: 长沙绿动循环环保科技发展有限责任公司
A38: 铁及其合金(吨) | B38: B-02-01 | C38: 312.1395 | D38: 0.0000 | E38: 3439.2885 | F38: 3569.1687 | G38: 134.2640 | H38: 湖南绿色再生资源有限公司领料处理 | I38: =C38+D38+E38-F38 -> 182.2593
G39: 309.0600 | H39: 冷水江金大路环保科技有限公司
G40: 1735.8015 | H40: 韶山金弘再生资源有限公司
G41: 66.7300 | H41: 天津奥尼斯特物产开发有限公司
G42: 1008.7675 | H42: 天津博瑞特金属制品有限公司
G43: -171.4739 | H43: 二次处理后销售出库
G44: 14.1680 | H44: 天津凯撒金属有限公司
G45: 17.2610 | H45: 天津通宜顺金属制品有限公司
G46: 31.5241 | H46: 天津永俊金属制品有限公司
G47: 406.9700 | H47: 湘潭鸿顺再生资源回收有限公司
G48: 16.0965 | H48: 长沙绿动循环环保科技发展有限责任公司
A49: 塑 料(吨) | B49: C | C49: 635.3443 | D49: 0.0000 | E49: 1775.9395 | F49: 1651.5723 | G49: 786.0804 | H49: 湖南绿色再生资源有限公司领料处理 | I49: =C49+D49+E49-F49 -> 759.7115
G50: 47.8070 | H50: 佛山市顺德区同泰塑料实业有限公司
G51: 310.4509 | H51: 江苏松上科技有限公司
G52: 65.6505 | H52: 临沂昱博再生资源利用有限公司
G53: -101.3137 | H53: 二次处理后销售出库
G54: 4.9210 | H54: 天津永俊金属制品有限公司
G55: 20.9460 | H55: 天津中商瑞隆金属制品有限公司
G56: 34.4960 | H56: 益阳益邦再生资源有限公司
G57: 176.4300 | H57: 长沙杰雄通塑胶科技有限公司
G58: 306.1042 | H58: 长沙绿动循环环保科技发展有限责任公司
A59: （空调）冷凝器 | B59: F-01-16-01 | C59: 62.1101 | D59: 0.0000 | E59: 882.9180 | F59: 931.4750 | G59: 931.4750 | H59: 湖南绿色再生资源有限公司领料处理 | I59: =C59+D59+E59-F59 -> 13.5531
A60: （空调）蒸发器 | B60: F-01-15-01 | C60: 21.0100 | D60: 0.0000 | E60: 454.6100 | F60: 437.0630 | G60: 59.7400 | H60: 天津恒丰运业金属制品有限公司 | I60: 38.5570
G61: 146.3800 | H61: 天津凯撒金属有限公司
G62: 30.2200 | H62: 天津诺康金属制品有限公司
G63: 200.7230 | H63: 湖南绿色再生资源有限公司领料处理
A64: 电源 | B64: F-01-12-01 | C64: 7.2066 | D64: 0.0000 | E64: 17.7635 | F64: 24.9701 | G64: -0.5174 | H64: 二次处理后销售出库 | I64: 0.0000
G65: 25.4875 | H65: 天津永俊金属制品有限公司
A66: 光驱 | B66: F-01-13-01 | C66: 41.4527 | D66: 0.0000 | E66: 8.1604 | F66: 22.7772 | G66: 0.2392 | H66: 天津永俊金属制品有限公司 | I66: =C66+D66+E66-F66 -> 26.8359
G67: 22.3585 | H67: 天津开泰金属制品有限公司
G68: 0.1795 | H68: 长沙绿动循环环保科技发展有限责任公司
A69: 软驱 | B69: F-01-14-01 | C69: 0.0000 | D69: 0.0000 | E69: 0.0000 | F69: 0.0000 | G69: 0.0000 | H69: 暂存 | I69: 0.0000
A70: 硬盘 | B70: F-01-06-01 | C70: 10.8238 | D70: 0.0000 | E70: 4.4264 | F70: 10.2227 | G70: 9.9256 | H70: 天津永俊金属制品有限公司 | I70: 5.0275
G71: -0.2415 | H71: 二次处理后销售出库
G72: 0.5386 | H72: 长沙绿动循环环保科技发展有限责任公司
A73: 矿物油 | B73: D-01-03-02 | C73: 8.9745 | D73: 0.0000 | E73: 39.3670 | F73: 46.2180 | G73: 46.2180 | H73: 长沙铭远环保科技有限公司 | I73: =C73+D73+E73-F73 -> 2.1235
A74: 荧光粉 | B74: G-01-02-01 | C74: 0.0273 | D74: 0.0000 | E74: 0.0000 | F74: 0.0000 | G74: 0.0000 | H74: 暂存 | I74: 0.0273
A75: 液晶面板 | B75: F-01-23-01 | C75: 45.7657 | D75: 0.0000 | E75: 32.4173 | F75: 71.8275 | G75: -2.4060 | H75: 二次处理后销售出库 | I75: 6.3555
G76: 74.2335 | H76: 湖南嘉宸再生资源利用有限公司
A77: 光学膜片 | B77: C-03-01-33 | C77: 28.4255 | D77: 0.0000 | E77: 8.0025 | F77: 2.5441 | G77: 2.5441 | H77: 长沙绿动循环环保科技发展有限责任公司 | I77: =C77+D77+E77-F77 -> 33.8839
A78: 汞灯管 | B78: F-01-25-01 | C78: 0.4903 | D78: 0.0000 | E78: 0.1710 | F78: 0.0000 | G78: 0.0000 | H78: 暂存 | I78: 0.6613
A79: LED灯带 | B79: F-01-24-01 | C79: 1.0971 | D79: 0.0000 | E79: 1.0493 | F79: 0.0535 | G79: 0.0535 | H79: 长沙绿动循环环保科技发展有限责任公司 | I79: 2.0929
A80: 小计： | C80: =SUM(C5:C79) -> 1799.2329 | D80: -0.0549 | E80: 10915.3099 | F80: 10408.5766 | G80: 10408.5766 | H80: —— | I80: =SUM(I5:I79) -> 2305.9113
A81: 电池 | B81: F-01-09-01 | C81: 0.5564 | D81: 0.0000 | E81: 0.0063 | F81: 0.0000 | G81: 0.0000 | H81: 暂存 | I81: =C81+D81+E81-F81 -> 0.5627
A82: 排水电机 | B82: F-01-04-03 | C82: 0.2091 | D82: 0.0000 | E82: 0.0000 | F82: 0.2091 | G82: 0.2091 | H82: 天津永俊金属制品有限公司 | I82: 0.0000
A83: (冰箱）玻璃 | B83: E-01-07-01 | C83: 44.2619 | D83: 0.0000 | E83: 17.1803 | F83: 49.6740 | G83: 49.6740 | H83: 长沙绿动循环环保科技发展有限责任公司 | I83: 11.7682
A84: （空调）玻璃 | B84: E-01-07-02 | C84: 0.0000 | D84: 0.0000 | E84: 0.0000 | F84: 0.0000 | G84: 0.0000 | H84: 暂存 | I84: 0.0000
A85: 固化玻璃 | B85: 无 | C85: 0.0000 | D85: 0.0000 | E85: 0.0000 | F85: 0.0000 | G85: 0.0000 | H85: 无 | I85: 0.0000
A86: 灯泡 | B86: F-01-26-25 | C86: 0.2033 | D86: 0.0000 | E86: 0.0660 | F86: 0.0000 | G86: 0.0000 | H86: 暂存 | I86: 0.2693
A87: 冰箱电机 | B87: F-01-04-04 | C87: 0.0000 | D87: 0.0000 | E87: 0.0000 | F87: 0.0000 | G87: 0.0000 | H87: 暂存 | I87: 0.0000
A88: （空调）电机 | B88: F-01-04-05 | C88: 50.0706 | D88: 0.0000 | E88: 642.8986 | F88: 613.9655 | G88: 613.9655 | H88: 天津永俊金属制品有限公司 | I88: 79.0037
A89: 橡胶（洗衣机） | B89: 无 | C89: 1.2114 | D89: 0.0000 | E89: 0.0000 | F89: 1.1520 | G89: 1.1520 | H89: 江苏松上科技有限公司 | I89: 0.0594
A90: 盐水 | B90: D-01-04-01 | C90: 0.0000 | D90: 0.0000 | E90: 0.0000 | F90: 0.0000 | G90: 0.0000 | H90: 无 | I90: 0.0000
A91: 皮带（洗衣机） | B91: 无 | C91: 0.0000 | D91: 0.0000 | E91: 0.0000 | F91: 0.0000 | G91: 0.0000 | H91: 无 | I91: 0.0000
A92: 其他 | B92: 无 | C92: 121.3397 | D92: 0.0000 | E92: 504.3228 | F92: 504.1126 | G92: 504.1126 | H92: 湘潭鸿顺再生资源回收有限公司等 | I92: 121.5499
A93: 管颈管（电子枪）玻璃 | B93: E-01-06-01 | C93: 0.3338 | D93: 0.0000 | E93: 0.0000 | F93: 0.3338 | G93: 0.3338 | H93: 汨罗万容固体废物处理有限公司 | I93: -0.0000 | J93: 11451.9913
A94: 电线电缆（笔记本） | B94: G-01-03-08 | C94: 0.7922 | D94: 0.0000 | E94: 0.1571 | F94: 0.7190 | G94: 0.7190 | H94: 天津永俊金属制品有限公司 | I94: 0.2303 | J94: 11452.0462
A95: 键盘（笔记本） | B95: F-01-26-26 | C95: 7.2758 | D95: 0.0000 | E95: 1.5068 | F95: 5.3213 | G95: 5.3213 | H95: 天津永俊金属制品有限公司 | I95: 3.4613 | J95: =J93-J94 -> -0.0549
A96: 硬脚电容 | B96: F-01-05-02 | C96: 27.8605 | D96: 0.0000 | E96: 43.9006 | F96: 27.0645 | G96: 27.0645 | H96: 天津永俊金属制品有限公司 | I96: 44.6966
A97: 小计： | C97: =SUM(C81:C96) -> 254.1147 | D97: 0.0000 | E97: 1210.0385 | F97: 1202.5518 | G97: 1202.5518 | H97: —— | I97: =SUM(I81:I96) -> 261.6014
A98: 总计 | C98: =C80+C97 -> 2053.3476 | D98: -0.0549 | E98: 12125.3484 | F98: 11611.1284 | G98: 11611.1284 | H98: —— | I98: =I80+I97 -> 2567.5127
